[Event "15th Tashkent Open Agzamov 2022"]
[Site "Tashkent"]
[Date "2022.05.10"]
[Round "9.9"]
[White "Bernadskiy, Vitaliy"]
[Black "Omonova, Umida"]
[Result "0-1"]
[ECO "A41"]
[WhiteElo "2636"]
[BlackElo "2111"]
[Annotator "TA"]
[PlyCount "134"]
[EventDate "2022.05.05"]
[EventType "swiss"]
[EventCountry "UZB"]
[SourceTitle "playchess.com"]
[Source "ChessBase"]
[SourceQuality "1"]
[TimeControl "5400+30"]

{[%evp 9,134,51,36,39,44,21,47,37,27,31,34,31,17,-7,-15,-9,10,11,11,8,37,30,30,27,23,27,33,31,101,123,174,185,160,183,170,160,179,79,91,91,72,53,44,46,61,65,59,57,69,64,66,63,56,46,55,46,46,46,53,0,0,0,0,0,0,0,0,0,0,-123,0,0,0,0,0,-344,0,0,0,0,0,0,0,0,0,-380,-364,-388,-387,-339,-337,-636,-635,-621,-610,-763,-736,-739,-327,-745,-695,-741,-636,-832,-806,-594,-634,-789,-770,-831,-819,-1144,-1063,-1593,-1524,-1287,-797,-29977,-29978,-29978,-29979,-29979,-29980,-29980,-29981,-29980,-29979]} 1. c4 {[%emt 0:02:05]} e5 {[%emt 0:00:42]} 2. g3 {[%emt 0:00:06]} d6 {[%emt 0:00:40]} 3. Bg2 {[%emt 0:00:05]} g6 {[%emt 0:00:21]} 4. d4 {[%emt 0:00:32]} Bg7 {[%emt 0:00:42]} 5. dxe5 {[%emt 0:00:52]} Bxe5 {[%emt 0:00:07]} 6. Nf3 {[%emt 0:00:28] A41: 1 d4 d6: Tartakower System and Modern Defence.} Bg7 {[%emt 0:00:13]} 7. Nc3 {[%emt 0:00:04]} Ne7 {[%emt 0:00:17] [#]} 8. Bf4 $146 {[%emt 0:02:41] White is slightly better.} ({Predecessor:} 8. O-O Nbc6 9. Bf4 O-O 10. Qd2 Be6 11. Nd5 Ne5 12. Nxe5 dxe5 13. Bh6 Bxh6 14. Qxh6 Bxd5 15. cxd5 {0-1 (64) Narzikulova,G (1837)-Khegay,Y (1798) Tashkent 2020}) 8... Nbc6 {[%emt 0:01:57]} 9. Qd2 {[%emt 0:00:17]} Be6 {[%emt 0:01:22]} 10. Nd5 {[%emt 0:00:53]} h6 {[%emt 0:01:17] Prevents Bg5.} 11. Nxe7 {[%emt 0:06:28]} Qxe7 {[%emt 0:00:31]} 12. Rc1 {[%emt 0:00:03]} Rd8 {[%emt 0:01:29]} 13. h4 {[%emt 0:00:32]} d5 {[%emt 0:01:39]} 14. c5 {[%emt 0:00:06]} h5 {[%emt 0:07:38]} 15. b4 {[%emt 0:03:22][%cal Bb2b4,Bb4b5,Bb5c6][%mdl 32] Threatens to win with b5.} Bg4 {[%emt 0:02:22]} 16. O-O {[%emt 0:05:02]} O-O {[%emt 0:02:37]} 17. b5 {[%emt 0:06:28]} Ne5 {[%emt 0:02:08]} 18. Qa5 $36 {[%emt 0:05:50][%mdl 2048] White fights for an advantage.} Ra8 {[%emt 0:09:58]} (18... c6 $14) 19. Bg5 $1 $16 {[%emt 0:01:14]} Qd7 {[%emt 0:02:47]} (19... Qe6 $16) 20. Nxe5 $18 {[%emt 0:00:55]} Bxe5 {[%emt 0:00:08]} 21. c6 $1 {[%emt 0:00:04]} bxc6 {[%emt 0:00:50]} 22. bxc6 {[%emt 0:00:04]} Qd6 {[%emt 0:01:24]} 23. Qxd5 {[%emt 0:00:21]} (23. Rc5 $18 {has better winning chances.} f6 24. Rxd5 (24. Bxd5+ Kg7 $16)) 23... Rfe8 {[%emt 0:01:13]} 24. Qxd6 {[%emt 0:02:15]} Bxd6 {[%emt 0:00:07]} 25. e4 {[%emt 0:02:58]} Rab8 {[%emt 0:01:07]} 26. Rc2 {[%emt 0:00:27]} Be5 {[%emt 0:02:19]} 27. f3 {[%emt 0:00:48][%cal Bf2f3,Bf3f4][%mdl 32]} Be6 {[%emt 0:00:18]} 28. Kh2 {[%emt 0:01:18]} f6 {[%emt 0:01:37]} 29. Be3 {[%emt 0:00:47]} a5 {[%emt 0:00:28]} 30. f4 {[%emt 0:03:51]} Bd6 {[%emt 0:03:19]} 31. Bd4 {[%emt 0:00:04]} Kf7 {[%emt 0:00:32]} 32. Bf3 {[%emt 0:10:27][%cal Of4f5]} f5 {[%emt 0:01:20]} 33. e5 {[%emt 0:02:23]} Be7 {[%emt 0:00:07]} 34. Rff2 {[%emt 0:04:02]} (34. Ba7 $14 Rb4 35. Rff2) 34... Red8 $11 {[%emt 0:01:02]} 35. Bc3 {[%emt 0:00:52]} Rb5 {[%emt 0:00:56]} 36. Rcd2 {[%emt 0:08:47]} Rc5 {[%emt 0:05:20]} 37. Rxd8 {[%emt 0:02:15]} Bxd8 {[%emt 0:02:10]} 38. Be1 {[%emt 0:03:28]} a4 {[%emt 0:02:03] aiming for ...Rc1.} 39. Kg2 {[%emt 0:06:45] [#]} (39. Bb4 $11 Rc4 40. Ba5) 39... Be7 {[%emt 0:00:51]} ({Better is} 39... Rc1 $1 $17 {[%cal Rc1e1]} 40. Bb4 Ra1) 40. Bb4 {[%emt 0:01:07]} Rb5 {[%emt 0:00:05]} 41. Bc3 {[%emt 0:01:18]} a3 {[%emt 0:02:14] ...Bb4 is the strong threat.} 42. Bd4 $2 {[%emt 0:04:23][%mdl 8192]} (42. Rd2 $11 {and White is okay.}) 42... Rb4 $2 {[%emt 0:03:45]} (42... Bc5 $19 43. Bxc5 Rxc5) 43. Bc3 {[%emt 0:02:30]} Rb5 {[%emt 0:00:03]} 44. Rd2 {[%emt 0:00:24]} Rc5 {[%emt 0:03:59]} 45. Bb4 {[%emt 0:05:10][%csl LRa3,LRc5]} Rb5 {[%emt 0:00:06]} 46. Bc3 {[%emt 0:03:42]} Rc5 {[%emt 0:00:05]} 47. Bd4 {[%emt 0:00:52][%mdl 8192]} (47. Bb4 $11 Rc1 48. Bxe7 Kxe7 49. Kh3) 47... Rc1 $19 {[%emt 0:00:45]} 48. Kh3 {[%emt 0:02:29]} Bb4 {[%emt 0:00:18]} 49. Rf2 {[%emt 0:00:32]} Bc4 {[%emt 0:02:10]} 50. Bg2 $2 {[%emt 0:01:35]} (50. Rh2) 50... Ke6 {[%emt 0:03:05]} 51. Bf3 {[%emt 0:01:18]} Be1 {[%emt 0:02:03]} 52. Rh2 {[%emt 0:00:32]} Bf1+ {[%emt 0:07:09]} 53. Bg2 {[%emt 0:00:04]} Bd3 {[%emt 0:01:07]} (53... Be2 $142 {[%csl Gf5,Gh5][%cal Re2g4]} 54. Rh1 Bd2) 54. Rh1 $2 {[%emt 0:01:00] [#]} (54. Bf3 Bf1+ 55. Bg2) 54... Bd2 $1 {[%emt 0:00:02]} 55. Rh2 {[%emt 0:00:32]} Rc2 {[%emt 0:00:10]} 56. Bf3 {[%emt 0:00:25]} Bf1+ {[%emt 0:00:38]} 57. Bg2 {[%emt 0:00:04]} Bc4 {[%emt 0:00:29]} 58. Bc5 {[%emt 0:00:50]} Rxa2 {[%emt 0:04:45]} 59. Bf3 {[%emt 0:00:18]} Bc1 {[%emt 0:00:56]} 60. Rh1 {[%emt 0:00:32] Against Bf1+} Rc2 {[%emt 0:00:07] Hoping for ...a2.} 61. Bd1 {[%emt 0:00:47]} a2 {[%emt 0:00:36]} 62. Bd4 {[%emt 0:00:04]} Rb2 {[%emt 0:00:18]} 63. Bb3 {[%emt 0:01:00]} Bxb3 {[%emt 0:01:33] Black mates.} 64. Rxc1 {[%emt 0:00:08]} Rb1 {[%emt 0:00:02]} 65. Rc5 {[%emt 0:00:24]} Bd5 {[%emt 0:00:08][%cal Rb1h1]} 66. Rc2 {[%emt 0:00:47]} a1=Q {[%emt 0:00:09]} 67. Bxa1 {[%emt 0:00:06]} Rxa1 {[%emt 0:21:15] Never resign too early!  Weighted Error Value: White=0.61/Black=0.20 (precise)} 0-1

[Event "15th Tashkent Open Agzamov 2022"]
[Site "Tashkent"]
[Date "2022.05.10"]
[Round "9.10"]
[White "Madaminov, Mukhiddin"]
[Black "Van Foreest, Lucas"]
[Result "1/2-1/2"]
[ECO "D37"]
[WhiteElo "2308"]
[BlackElo "2572"]
[Annotator "TA"]
[PlyCount "40"]
[EventDate "2022.05.05"]
[EventType "swiss"]
[EventCountry "UZB"]
[SourceTitle "playchess.com"]
[Source "ChessBase"]
[SourceQuality "1"]
[TimeControl "5400+30"]

{[%evp 9,40,24,26,22,22,29,26,27,29,23,23,8,8,20,19,9,41,0,30,0,15,9,23,8,25,6,4,13,6,0,20,0,0]} 1. d4 {[%emt 0:01:05]} d5 {[%emt 0:00:18]} 2. c4 {[%emt 0:00:43]} e6 {[%emt 0:00:40]} 3. Nc3 {[%emt 0:00:18]} a6 {[%emt 0:00:10]} 4. cxd5 {[%emt 0:01:26]} exd5 {[%emt 0:00:06]} 5. Nf3 {[%emt 0:00:54]} Nf6 {[%emt 0:00:12]} 6. Bg5 {[%emt 0:00:50] D37: Queen's Gambit Declined: 5 Bf4.} Be6 {[%emt 0:00:17]} 7. e3 {[%emt 0:03:00]} Nbd7 {[%emt 0:00:10]} 8. Bd3 {[%emt 0:00:48] White has an edge.} c6 {[%emt 0:00:08]} 9. O-O {[%emt 0:01:39]} h6 {[%emt 0:00:06]} 10. Bh4 {[%emt 0:02:29][%cal Bg5h4,Bh4g3,Bg3e5][%mdl 32]} g5 {[%emt 0:00:04]} 11. Bg3 {[%emt 0:00:11]} Nh5 $1 {[%emt 0:00:05]} 12. Be5 {[%emt 0:04:09]} Nhf6 {[%emt 0:00:07]} 13. Bg3 {[%emt 0:00:05]} (13. Qb3 $5 {[%cal Rb3b7]}) 13... Nh5 $1 {[%emt 0:00:07]} 14. Be5 {[%emt 0:00:04]} Rg8 {[%emt 0:00:05]} 15. Bh7 $36 {[%emt 0:08:46][%mdl 2048] White is more active.} g4 $1 {[%emt 0:00:04][%cal Og4f3]} 16. Bxg8 {[%emt 1:12:03] [#] Strongly threatening Nd2.} gxf3 {[%emt 0:00:06]} 17. Qxf3 {[%emt 0:00:00]} Nhf6 {[%emt 0:00:12] [#] The position is equal.} 18. Qg3 $146 {[%emt 0:00:00]} ({Predecessor:} 18. Bxf7+ Bxf7 19. e4 Nxe5 20. dxe5 Nxe4 21. Nxe4 dxe4 22. Qxe4 Qd5 23. Qf4 O-O-O 24. Rfe1 Be6 25. h3 Bc5 26. Rac1 Rg8 27. g4 {0-1 (33) Mohammad,N (2445)-Jacobson,A (2262) Chess.com INT 2020}) 18... Nh5 $1 {[%emt 0:01:38]} 19. Qf3 {[%emt 0:00:00]} Nhf6 {[%emt 0:00:02]} 20. Qg3 {[%emt 0:00:00]} Nh5 $1 {[%emt 0:00:04] An interesting draw.  Weighted Error Value: White=0.10 (very precise) /Black=0.02 (flawless)} 1/2-1/2

[Event "15th Tashkent Open Agzamov 2022"]
[Site "Tashkent"]
[Date "2022.05.11"]
[Round "10.1"]
[White "Mchedlishvili, Mikheil"]
[Black "Sindarov, Javokhir"]
[Result "1/2-1/2"]
[ECO "D71"]
[WhiteElo "2595"]
[BlackElo "2609"]
[Annotator "TA"]
[PlyCount "31"]
[EventDate "2022.05.05"]
[EventType "swiss"]
[EventCountry "UZB"]
[SourceTitle "playchess.com"]
[Source "ChessBase"]
[SourceQuality "1"]
[TimeControl "5400+30"]

{[%evp 9,31,16,12,4,4,9,19,5,24,23,29,16,27,18,18,16,17,18,17,7,14,0,2,9]} 1. d4 {[%emt 0:01:04]} Nf6 {[%emt 0:07:04][%cal Bg8f6,Bf6d7,Bd7b6][%mdl 32]} 2. c4 {[%emt 0:00:28]} g6 {[%emt 0:00:08]} 3. g3 {[%emt 0:00:48]} c6 {[%emt 0:06:08]} 4. Bg2 {[%emt 0:00:55]} d5 {[%emt 0:00:24]} 5. Qa4 {[%emt 0:00:30]} Nfd7 {[%emt 0:18:47]} 6. cxd5 {[%emt 0:00:55] D71: Fianchetto Grünfeld: 3 g3 d5 sidelines and 5 cxd5 (without Nf3).} Nb6 {[%emt 0:00:10][%csl LRa4,LRd5]} 7. Qd1 {[%emt 0:00:39]} cxd5 {[%emt 0:00:21]} 8. Nc3 {[%emt 0:00:38]} Bg7 {[%emt 0:01:12]} 9. e3 {[%emt 0:01:10]} Nc6 {[%emt 0:01:21]} 10. Nge2 {[%emt 0:00:34]} Bg4 {[%emt 0:01:12]} 11. O-O {[%emt 0:02:37]} O-O {[%emt 0:00:32] The position is equal.} 12. a4 {[%emt 0:06:38]} Bxe2 {[%emt 0:06:06]} 13. Qxe2 {[%emt 0:01:07]} e6 {[%emt 0:00:05]} 14. b3 {[%emt 0:06:09] [#]} Nc8 $146 {[%emt 0:00:16]} ({Predecessor:} 14... Rc8 15. Bd2 a6 16. Rfb1 Qe7 17. a5 Nd7 18. Rc1 Rc7 19. Na4 Rfc8 20. Nb6 Nxb6 21. axb6 {½-½ (40) Andersen,M (2601)-Pultinevicius,P (2503) Batumi 2019}) 15. Bd2 {[%emt 0:11:58]} Re8 {[%emt 0:05:36]} 16. Rfc1 {[%emt 0:06:39] An uneventful encounter.  Weighted Error Value: White=0.02 (flawless) /Black=0.03 (flawless)} 1/2-1/2

[Event "15th Tashkent Open Agzamov 2022"]
[Site "Tashkent"]
[Date "2022.05.11"]
[Round "10.2"]
[White "Sanal, Vahap"]
[Black "Vakhidov, Jakhongir"]
[Result "1/2-1/2"]
[ECO "B23"]
[WhiteElo "2575"]
[BlackElo "2552"]
[Annotator "TA"]
[PlyCount "48"]
[EventDate "2022.05.05"]
[EventType "swiss"]
[EventCountry "UZB"]
[SourceTitle "playchess.com"]
[Source "ChessBase"]
[SourceQuality "1"]
[TimeControl "5400+30"]

{[%evp 9,48,0,14,-12,0,-8,39,0,0,-5,6,8,1,10,34,39,45,33,26,30,45,31,41,33,23,16,9,4,0,0,0,0,0,-35,-15,-58,-56,-47,-3,-16,-6]} 1. e4 {[%emt 0:00:03]} c5 {[%emt 0:08:21]} 2. Nc3 {[%emt 0:00:16]} Nc6 {[%emt 0:01:25]} 3. Bb5 {[%emt 0:00:12]} Nd4 {[%emt 0:00:14]} 4. a4 {[%emt 0:00:10]} a6 {[%emt 0:01:38]} 5. Bc4 {[%emt 0:00:10]} e6 {[%emt 0:01:48]} 6. d3 {[%emt 0:00:00] B23: Closed Sicilian: Lines without g3.} Nf6 {[%emt 0:01:17]} 7. Ba2 Ng8 {[%emt 0:00:20]} (7... Nc6 $11) 8. Bc4 {[%emt 0:00:54] White is slightly better.} Nf6 {[%emt 0:00:40]} 9. Ba2 {[%emt 0:00:30]} d5 {[%emt 0:00:30]} 10. Nge2 {[%emt 1:33:15]} Be7 {[%emt 1:19:17]} 11. O-O {[%emt 0:00:00]} O-O {[%emt 0:00:30]} 12. exd5 $1 {[%emt 0:00:00]} exd5 {[%emt 0:00:00]} 13. Nxd4 {[%emt 0:00:00]} cxd4 {[%emt 0:00:00]} 14. Ne2 {[%emt 0:00:00]} Qb6 {[%emt 0:00:00]} 15. Bb3 {[%emt 0:00:00] [#]} a5 $146 {[%emt 0:00:00]} ({Predecessor:} 15... Bd6 16. a5 Qc5 17. h3 Be6 18. Ra4 Bd7 19. Rxd4 Qxa5 20. Bg5 Be5 21. Bxf6 Bxf6 22. Rxd5 Qc7 23. Qd2 Be6 {0-1 (96) Bodnaruk,A (2411)-Kovalevskaya,E (2384) Moscow 2020}) 16. Bd2 {[%emt 0:00:00]} Bd7 {[%emt 0:00:00]} 17. Nf4 {[%emt 0:00:00]} Bc6 {[%emt 0:00:00]} 18. Qf3 {[%emt 0:00:00]} Bb4 {[%emt 0:00:00]} 19. Bxb4 {[%emt 0:00:00]} Qxb4 {[%emt 0:00:00]} 20. g4 {[%emt 0:00:00]} ({Wrong is} 20. Bxd5 $2 Nxd5 21. Nxd5 Qd6 22. Nf6+ (22. c4 $2 dxc3 23. bxc3 Bxd5 $19) 22... Qxf6 $19) 20... Rae8 {[%emt 0:00:00][%cal Ba8e8,Be8e5,Be5e2][%mdl 32]} 21. Qg3 {[%emt 0:00:00]} Re5 {[%emt 0:00:00]} 22. Ng2 {[%emt 0:00:00]} Rfe8 {[%emt 0:00:00]} 23. f4 {[%emt 0:00:00]} Re2 {[%emt 0:00:00]} 24. f5 {[%emt 0:00:00]} (24. g5 $5 {[%cal Rg5f6]} Nd7 25. f5 $11) 24... h6 {[%emt 0:00:00] Weighted Error Value: White=0.09 (flawless) /Black=0.10 (very precise)} 1/2-1/2

[Event "15th Tashkent Open Agzamov 2022"]
[Site "Tashkent"]
[Date "2022.05.11"]
[Round "10.3"]
[White "Suleymenov, Alisher"]
[Black "Romanov, Evgeny"]
[Result "1/2-1/2"]
[ECO "E52"]
[WhiteElo "2445"]
[BlackElo "2573"]
[Annotator "TA"]
[PlyCount "36"]
[EventDate "2022.05.05"]
[EventType "swiss"]
[EventCountry "UZB"]
[SourceTitle "playchess.com"]
[Source "ChessBase"]
[SourceQuality "1"]
[TimeControl "5400+30"]

{[%evp 19,23,13,15,25,15,11]} 1. d4 {[%emt 0:00:49]} Nf6 {[%emt 0:01:35]} 2. c4 {[%emt 0:00:37]} e6 {[%emt 0:00:27]} 3. Nc3 {[%emt 0:01:54]} Bb4 {[%emt 0:01:47]} 4. e3 {[%emt 0:02:27]} O-O {[%emt 0:01:23]} 5. Bd2 {[%emt 0:00:50]} b6 {[%emt 0:02:48]} 6. Nf3 {[%emt 0:02:02]} Bb7 {[%emt 0:00:20]} 7. Bd3 {[%emt 0:01:17]} d5 {[%emt 0:02:35]} 8. cxd5 {[%emt 0:01:37]} exd5 {[%emt 0:00:24]} 9. Rc1 {[%emt 0:02:09]} a6 {[%emt 0:03:22]} 10. O-O {[%emt 0:01:43]} Bd6 {[%emt 0:01:03]} 11. Ne5 {[%emt 0:01:17] E52: Nimzo-Indian: Rubinstein: 4...0-0 5 Nf3 d5 6 Bd3 b6.} c5 {[%emt 0:01:22]} 12. f4 {[%emt 0:02:57] [#] A rather calm draw.} {Predecessor:} Nc6 $146 13. Ne2 Rc8 14. Bc3 c4 15. Bb1 Ne7 16. Ng3 Ne4 17. Qg4 f5 18. Qh3 b5 {1-0 (50) Kovalenko,I (2647)-Brkic,A (2621) Zagreb 2021} 1/2-1/2

[Event "15th Tashkent Open Agzamov 2022"]
[Site "Tashkent"]
[Date "2022.05.11"]
[Round "10.4"]
[White "Iskandarov, Misratdin"]
[Black "Indjic, Aleksandar"]
[Result "0-1"]
[ECO "B51"]
[WhiteElo "2601"]
[BlackElo "2621"]
[Annotator "TA"]
[PlyCount "86"]
[EventDate "2022.05.05"]
[EventType "swiss"]
[EventCountry "UZB"]
[SourceTitle "playchess.com"]
[Source "ChessBase"]
[SourceQuality "1"]
[TimeControl "5400+30"]

{[%evp 9,86,8,16,15,10,0,0,0,0,0,0,0,0,0,6,0,0,-37,0,0,-7,-22,-19,-13,-20,-52,-56,-73,-49,-68,-64,-97,-89,-83,-85,-57,-56,-58,-57,-50,-52,-32,-62,-100,-105,-85,-85,-403,-379,-375,-386,-384,-383,-383,-375,-365,-372,-372,-325,-547,-545,-611,-604,-612,-612,-658,-650,-670,-660,-752,-739,-812,-812,-807,-798,-781,-714,-962,-929]} 1. e4 {[%emt 0:00:05]} c5 {[%emt 0:02:30]} 2. Nf3 {[%emt 0:00:30]} d6 {[%emt 0:00:35]} 3. Bb5+ {[%emt 0:00:28]} Nd7 {[%emt 0:00:09]} 4. Ba4 {[%emt 0:00:43]} Ngf6 {[%emt 0:02:38]} 5. O-O {[%emt 0:00:09]} e6 {[%emt 0:02:16]} 6. Re1 {[%emt 0:09:42] B51: Sicilian: Moscow Variation (3 Bb5+) without 3...Bd7.} a6 {[%emt 0:00:45] aiming for ...b5.} 7. c4 {[%emt 0:00:28] Inhibits b5.} Be7 {[%emt 0:01:07]} 8. Nc3 {[%emt 0:00:11] The position is equal.} O-O {[%emt 0:00:55]} 9. d4 {[%emt 0:00:06]} cxd4 {[%emt 0:00:13]} 10. Nxd4 {[%emt 0:00:38]} Qc7 {[%emt 0:00:06]} 11. Bb3 {[%emt 0:00:19]} Ne5 {[%emt 0:02:39]} 12. Qe2 {[%emt 0:03:57]} Bd7 {[%emt 0:04:38]} 13. Bf4 {[%emt 0:11:21] [#]} (13. f4 $5 {[%cal Rf4e5]} Nc6 14. Be3 $11) 13... Rac8 $146 {[%emt 0:04:17][%cal Re5c4]} (13... Rfc8 $5 {[%cal Re5c4]}) ({Predecessor:} 13... Nc6 14. Nf3 e5 15. Bg5 Bg4 16. Bxf6 Bxf6 17. Nd5 Qd8 18. Qe3 Bxf3 19. Qxf3 Nd4 {1-0 (28) Vinter Schou,U (2349)-Castillo Pena,P (1770) Chess.com INT 2020}) 14. Rac1 {[%emt 0:00:15]} Kh8 {[%emt 0:02:17]} ({Don't play} 14... Nxc4 15. Bxc4 Qxc4 16. Nd5 $1 exd5 17. Rxc4 Rxc4 18. Nf5 $14) 15. Nf3 {[%emt 0:26:39]} Nxc4 {[%emt 0:09:26]} 16. Nb1 {[%emt 0:08:56][%cal Rc1c4]} b5 {[%emt 0:00:26]} 17. Nbd2 {[%emt 0:00:07][%cal Rd2c4]} Nh5 {[%emt 0:13:55]} 18. Be3 {[%emt 0:03:36][%cal Rd2c4]} d5 {[%emt 0:00:22]} 19. e5 {[%emt 0:03:38] Prevents Bf6.} f5 {[%emt 0:01:08]} 20. h3 {[%emt 0:06:21]} Qb7 {[%emt 0:08:55] Black is more active.} 21. Bxc4 {[%emt 0:06:57]} dxc4 {[%emt 0:06:18]} 22. Nd4 {[%emt 0:00:35] [#]} f4 $1 $36 {[%emt 0:00:51][%mdl 2048] Black has the initiative.} 23. Qxh5 {[%emt 0:00:36][%cal Oh5g4]} fxe3 {[%emt 0:00:08]} 24. fxe3 {[%emt 0:07:11]} Qd5 {[%emt 0:08:59]} 25. N2f3 {[%emt 0:00:52]} b4 {[%emt 0:06:52]} 26. Rcd1 {[%emt 0:03:11][%cal Od4f5]} c3 {[%emt 0:02:40]} 27. bxc3 {[%emt 0:00:10]} ({Avoid the trap} 27. Nf5 $2 {[#]} Rxf5 $1 28. Rxd5 exd5 $19) 27... bxc3 {[%emt 0:00:11]} 28. Nf5 $2 {[%emt 0:05:28][%mdl 8192] [#] Now White is beyond hope.} Rxf5 $1 {[%emt 0:08:26]} 29. Rxd5 {[%emt 0:00:06]} exd5 {[%emt 0:00:30]} ({Not} 29... Rxh5 30. Rxd7 Bb4 31. Rc1 $11) 30. Qg4 {[%emt 0:00:28]} c2 {[%emt 0:00:06]} 31. Kh2 {[%emt 0:01:14]} c1=Q {[%emt 0:00:16]} 32. Rxc1 {[%emt 0:00:05]} Rxc1 {[%emt 0:00:03]} 33. Qd4 {[%emt 0:01:09] Qa7 is the strong threat.} Be6 {[%emt 0:01:51]} 34. Qb6 $2 {[%emt 0:00:16]} (34. Qb2 Rc8 35. Qb7) 34... Bg8 $19 {[%emt 0:00:14] Black is clearly winning.} 35. Qxa6 {[%emt 0:00:34]} Bc5 {[%emt 0:00:21]} 36. Qd3 {[%emt 0:00:43]} Rf8 {[%emt 0:00:16]} 37. a4 {[%emt 0:00:28]} Rc4 {[%emt 0:00:30]} 38. a5 {[%emt 0:00:43]} Ra8 {[%emt 0:00:28]} 39. Nd2 {[%emt 0:00:31]} Ra4 {[%emt 0:00:20]} 40. Qc2 {[%emt 0:00:15]} R8xa5 {[%emt 0:00:44]} 41. Nb3 {[%emt 0:00:06] [#]} Rc4 $1 {[%emt 0:00:21][%mdl 512]} 42. Qf5 {[%emt 0:01:11]} (42. Qf2 Raa4) 42... Ra8 {[%emt 0:00:11]} 43. Nd2 {[%emt 0:00:26]} Rc3 {[%emt 0:01:16] Weighted Error Value: White=0.38/Black=0.04 (flawless)} 0-1

[Event "15th Tashkent Open Agzamov 2022"]
[Site "Tashkent"]
[Date "2022.05.11"]
[Round "10.5"]
[White "Asadli, Vugar"]
[Black "Abdurakhmonov, Mukhammadali"]
[Result "1-0"]
[ECO "B23"]
[WhiteElo "2578"]
[BlackElo "2308"]
[Annotator "TA"]
[PlyCount "59"]
[EventDate "2022.05.05"]
[EventType "swiss"]
[EventCountry "UZB"]
[SourceTitle "playchess.com"]
[Source "ChessBase"]
[SourceQuality "1"]
[TimeControl "5400+30"]

{[%evp 10,59,12,6,26,-5,15,20,23,-6,0,-20,30,38,43,30,33,32,59,41,38,27,67,77,75,40,73,95,99,100,83,96,96,89,91,92,90,91,142,133,217,217,202,220,286,286,268,237,357,321,368,354]} 1. e4 {[%emt 0:00:01]} c5 {[%emt 0:10:24]} 2. Nc3 {[%emt 0:00:38]} a6 {[%emt 0:00:26]} 3. g3 {[%emt 0:01:19]} b5 {[%emt 0:00:22]} 4. Bg2 {[%emt 0:00:42]} Bb7 {[%emt 0:00:06]} 5. d3 {[%emt 0:00:42]} e6 {[%emt 0:02:14]} 6. f4 {[%emt 0:00:38]} d6 {[%emt 0:00:55] B23: Closed Sicilian: Lines without g3.} 7. Nh3 {[%emt 0:00:52]} Nf6 {[%emt 0:03:11]} 8. O-O {[%emt 0:00:13]} b4 {[%emt 0:03:14] The position is equal.} 9. Ne2 {[%emt 0:01:03]} Be7 {[%emt 0:01:18] [#]} 10. c4 $146 {[%emt 0:03:01]} ({Predecessor:} 10. Nf2 Nc6 11. c3 bxc3 12. bxc3 O-O 13. Rb1 Qc7 14. g4 Nd7 15. g5 Nd8 16. Ng3 {½-½ (44) Li,R (2583)-Kovalyov,A (2658) Philadelphia 2018}) 10... bxc3 {[%emt 0:01:36]} (10... Nc6 $142) 11. bxc3 $11 {[%emt 0:00:37]} O-O {[%emt 0:01:03][%cal Oc5c4]} 12. Rb1 {[%emt 0:01:21]} Bc6 {[%emt 0:01:01]} 13. Nf2 {[%emt 0:00:33]} d5 {[%emt 0:06:44]} 14. Qc2 {[%emt 0:07:36]} Qc7 {[%emt 0:04:23]} 15. c4 {[%emt 0:01:17]} dxe4 {[%emt 0:00:50]} 16. dxe4 {[%emt 0:00:14]} Rd8 {[%emt 0:00:26]} 17. Be3 {[%emt 0:03:04]} Nbd7 {[%emt 0:00:45]} 18. e5 {[%emt 0:07:31]} Ne8 {[%emt 0:00:54] [#]} 19. Bxc6 $1 {[%emt 0:04:57]} Qxc6 {[%emt 0:00:05]} 20. Qe4 {[%emt 0:00:01]} Qxe4 {[%emt 0:10:13]} 21. Nxe4 {[%emt 0:00:01]} f6 {[%emt 0:00:08]} 22. Rb7 $36 {[%emt 0:05:37][%mdl 2048] White is on the roll.} Rab8 {[%emt 0:00:22]} 23. Rfb1 {[%emt 0:03:37] White is much more active.} Rxb7 {[%emt 0:09:41]} ({Black should play} 23... fxe5 24. fxe5 Rdc8) 24. Rxb7 $16 {[%emt 0:00:29] [#] Threatens to win with Bd2.} Bf8 {[%emt 0:01:16]} (24... Kf8 $16 25. exf6 gxf6) 25. Bd2 $18 {[%emt 0:03:06] Strongly threatening Ba5.} Nb8 {[%emt 0:02:05]} 26. Bc3 {[%emt 0:02:16]} fxe5 {[%emt 0:01:22]} 27. fxe5 {[%emt 0:00:49]} ({Less strong is} 27. Bxe5 Nc6 $16) 27... Nc6 {[%emt 0:01:12]} 28. Nf4 {[%emt 0:00:38]} Rd1+ {[%emt 0:10:54]} (28... Rb8 $142) 29. Kg2 {[%emt 0:00:34]} Nd8 {[%emt 0:00:24]} 30. Ra7 {[%emt 0:00:37] Weighted Error Value: White=0.10 (very precise) /Black=0.23 (precise)} 1-0